bitfinex-derivatives/quotes_ETHF0:USTF0_20251028
["timestamp","ask_amount","ask_price","bid_price","bid_amount"]
[1761642793221,1.20286,4119.7,4119.6,0.65867]
[1761642793419,1.20286,4119.7,4119.6,0.2217]
[1761642794123,1.20286,4119.7,4119.6,0.554]
[1761642795535,0.7659,4119.7,4119.6,0.7723]
[1761642797834,1.20286,4119.7,4119.6,0.7723]
[1761642798638,1.20286,4119.7,4119.6,1.20927]
[1761642799727,0.4323,4119.3,4119.2,0.2217]
[1761642799929,0.4323,4118.8,4118.3,0.3323]
[1761642800135,1.203,4118.4,4118.3,0.554]
[1761642800638,1.203,4118.4,4118.3,0.99111]
[1761642803035,0.3336,4117.7,4117.5,0.65889]
[1761642803340,0.7659,4117.7,4117.6,0.554]
[1761642803838,0.7659,4117.7,4117.6,0.7723]
[1761642804931,0.3336,4117.9,4117.7,0.3323]
[1761642805134,0.3336,4117.9,4117.8,0.554]
[1761642805334,0.5486,4117.9,4117.8,0.554]
[1761642805936,0.7659,4117.9,4117.8,0.554]
[1761642809432,0.7659,4117.7,4117.6,0.2217]
[1761642809634,0.7659,4117.7,4117.6,0.87718]
[1761642810146,0.7659,4117.7,4117.6,1.20948]
[1761642810438,0.4323,4117.7,4117.6,1.20948]
[1761642811242,0.7659,4117.7,4117.6,0.7723]
[1761642811836,0.4323,4117.7,4117.6,1.20948]
[1761642812434,0.215,4117.7,4117.6,1.20948]
[1761642814645,0.215,4117.7,4117.6,0.7723]
[1761642815636,0.7473,4117.7,4117.6,0.7723]
[1761642815836,0.98823088,4119.5,4118.4,0.4324]
[1761642816031,0.98823088,4119.5,4119.1,1.19262]
[1761642816032,0.20550645,4119.2,4119.1,1.19262]
[1761642816248,0.7626,4119.5,4119.4,0.7556]
[1761642816934,0.4476,4119.5,4119.2,0.3232]
[1761642817133,0.7626,4119.3,4119.2,0.4324]
[1761642817541,0.7626,4119.3,4119.2,0.7556]
[1761642819343,0.7626,4119.3,4119.2,1.19261]
[1761642819846,0.7626,4119.3,4119.2,0.7556]
[1761642820941,0.7626,4119.3,4119.2,1.19261]
[1761642828454,0.7626,4119.3,4119.2,0.97201]
[1761642829557,1.1996,4119.3,4119.2,0.97201]
[1761642830555,0.4476,4119.3,4118.5,0.4576]
[1761642830759,0.7626,4118.7,4118.6,0.76027]
[1761642830953,0.7626,4118.7,4118.6,1.19267]
[1761642831152,0.2177,4118.7,4118.6,1.19267]
[1761642831556,0.96967,4119.6,4119.5,0.535]
[1761642831760,0.65467,4119.6,4119.5,0.89]
[1761642831962,1.19957,4119.6,4119.5,0.89]
[1761642832265,41.99957,4119.6,4119.5,0.89]
[1761642832755,1.19957,4119.6,4119.5,0.89]
[1761642833772,0.7626,4119.2,4119.1,0.535]
[1761642833964,0.7626,4119.2,4119.1,0.97202]
[1761642834167,0.7626,4119.2,4119.1,1.19262]
[1761642834361,0.4476,4119.2,4119.1,1.19262]
[1761642835473,0.2177,4119.2,4119.1,1.19262]
[1761642838173,0.5327,4119.5,4119.4,0.7556]
[1761642838472,0.7626,4119.5,4119.4,0.7556]
[1761642840375,0.7626,4119.5,4119.4,1.19259]
[1761642841978,0.4476,4119.5,4119.4,1.19259]
[1761642843283,1.33977622,4119.5,4119.4,0.7556]
[1761642845179,1.33977622,4119.5,4119.4,0.535]
[1761642846684,1.33977622,4119.5,4119.4,0.97199]
[1761642846980,1.33977622,4119.5,4119.4,1.18049]
[1761642847777,0.57717622,4119.5,4119.4,1.18049]
[1761642852380,41.1374,4119.9,4119.4,0.7435]
[1761642852381,40.8,4119.9,4119.4,0.7435]
[1761642852586,40.8,4119.9,4119.8,0.7741]
[1761642852786,41.37814157,4119.9,4119.8,0.7741]
[1761642853279,0.80874157,4119.9,4119.8,0.7741]
[1761642854688,1.36684157,4119.9,4119.8,0.7741]
[1761642854882,0.4513,4119.6,4119.5,0.5552]
[1761642855080,0.7887,4119.6,4119.5,0.5552]
[1761642855283,1.36684157,4119.6,4119.5,0.5552]
[1761642855586,1.36684157,4119.6,4119.2,0.5552]
[1761642855587,0.7887,4119.3,4119.2,0.5552]
[1761642855787,1.36654919,4119.3,4119.2,0.5552]
[1761642856187,1.36654919,4119.3,4119.2,0.7741]
[1761642857489,0.7887,4118.9,4118.8,0.2233]
[1761642857890,0.7887,4118.9,4118.8,0.4422]
[1761642858090,0.7887,4118.9,4118.8,0.7741]
[1761642858596,0.4513,4118.9,4118.8,0.7741]
[1761642859790,0.7887,4118.9,4118.8,0.7741]
[1761642860093,0.7887,4118.9,4118.8,1.21116]
[1761642860288,0.7887,4118.9,4118.8,0.7741]
[1761642864295,0.7887,4118.9,4118.8,1.21116]
[1761642865394,0.7887,4118.9,4118.8,0.7741]
[1761642866598,0.7887,4118.9,4118.8,1.21116]
[1761642867791,0.7887,4118.9,4118.8,0.7741]
[1761642869491,0.4513,4118.9,4118.8,1.21116]
[1761642873500,0.2306,4118.9,4118.8,1.21116]
[1761642877694,0.563,4119.1,4119.0,1.31374]
[1761642877897,0.2256,4119.1,4119.0,1.31374]
[1761642881799,0.7539,4119.6,4119.5,0.5293]
[1761642882000,1.33244236,4119.6,4119.5,0.5293]
[1761642882500,1.33245567,4119.6,4119.5,0.5293]
[1761642883200,1.33245567,4119.6,4119.5,0.7421]
[1761642885803,1.33245567,4119.6,4118.6,0.96638]
[1761642885804,0.7539,4118.7,4118.6,0.96638]
[1761642885997,0.7539,4118.7,4118.6,1.17918]
[1761642889008,0.4404,4118.7,4118.6,1.17918]
[1761642890306,0.2256,4118.7,4118.6,1.17918]
[1761642890506,0.7539,4119.3,4119.2,0.4251]
[1761642890807,0.7539,4119.3,4119.2,0.7421]
[1761642890808,1.01838439,4119.3,4119.2,0.7421]
[1761642891200,1.33188439,4119.3,4119.2,0.7421]
[1761642891511,1.33188439,4119.3,4119.2,1.17911]
[1761642894313,1.33188439,4119.3,4119.2,0.7421]
[1761642894606,1.33188439,4119.3,4119.2,0.5293]
[1761642896512,0.7539,4119.0,4118.9,0.75405]
[1761642896813,1.33188439,4119.0,4118.9,0.96635]
[1761642899714,0.80358439,4119.0,4118.9,1.17915]
[1761642900015,0.5391,4119.4,4119.3,0.7421]
[1761642900216,1.117007,4119.4,4119.3,0.7421]
[1761642900419,1.331807,4119.4,4119.3,1.1791]
[1761642900616,0.803507,4119.4,4119.3,1.1791]
[1761642900916,0.577907,4119.4,4119.3,1.1791]
[1761642908314,0.532,4118.9,4118.4,2.83945214]
[1761642908508,0.4281,4119.4,4119.3,0.2105]
[1761642908709,0.86512,4119.1,4119.0,0.564]
[1761642908914,0.7477,4119.1,4119.0,0.8793]
[1761642909115,0.3196,4119.6,4119.5,0.7485]
[1761642909318,1.10964522,4119.6,4119.5,0.8793]
[1761642909615,1.32534522,4119.6,4119.5,0.8793]
[1761642911026,1.32534522,4119.6,4119.5,1.31628]
[1761642911622,1.76232522,4119.6,4119.5,1.31628]
[1761642918426,1.76232522,4119.6,4119.5,0.8793]
[1761642918922,1.76232522,4119.6,4119.5,0.7485]
[1761642919717,1.76232522,4119.6,4119.5,1.18548]
[1761642919918,1.76141937,4119.6,4119.5,1.18548]
[1761642920424,1.76141937,4119.6,4119.5,0.7485]
[1761642921127,1.76141937,4119.6,4119.5,0.5258]
[1761642921618,1.76141937,4119.6,4119.5,0.96278]
[1761642924027,1.76141937,4119.6,4119.5,0.5258]
[1761642925429,1.76141937,4119.6,4119.5,0.3153]
[1761642925826,1.00483937,4119.6,4119.0,0.6566]
[1761642926128,0.7477,4119.1,4119.0,0.64752]
[1761642926332,0.7477,4119.1,4119.0,1.00102]
[1761642926522,0.4281,4119.1,4119.0,1.31632]
[1761642927130,0.4468,4119.0,4118.5,0.4497]
[1761642927327,0.4468,4119.0,4118.0,2.31780267]
[1761642927328,0.3196,4118.4,4118.0,0.3449]
[1761642927532,0.7477,4118.1,4118.0,1.00473]
[1761642927741,0.7477,4118.1,4118.0,1.32003]
[1761642933935,40.8,4118.8,4118.3,0.43711]
[1761642933936,0.532,4118.4,4118.3,0.43711]
[1761642934144,0.2124,4118.4,4118.3,1.18561]
[1761642934344,0.5498,4118.4,4118.3,1.18561]
[1761642936335,0.5474,4118.7,4118.6,0.77208]
[1761642936539,0.21,4118.7,4118.6,1.21138]
[1761642936743,0.7569,4119.0,4118.9,0.99815]
[1761642936941,0.99471909,4119.0,4118.9,1.21135]
[1761642937142,0.4195,4119.0,4118.9,1.21135]
[1761642937542,0.7569,4119.0,4118.9,1.21135]
[1761642938352,0.7569,4119.0,4118.9,0.5611]
[1761642938648,0.7569,4119.0,4118.9,0.99815]
[1761642938946,0.7569,4119.0,4118.9,1.21135]
[1761642942352,0.3374,4118.9,4118.0,0.1344]
[1761642942652,0.7569,4118.3,4118.2,0.99822]
[1761642943150,0.7569,4118.3,4118.2,1.21142]
[1761642944745,0.4195,4118.3,4118.2,1.21142]
[1761642948354,0.7569,4118.3,4118.2,1.21142]
[1761642949858,0.4195,4118.3,4118.2,1.21142]
[1761642950158,0.5474,4118.5,4118.4,1.2114]
[1761642950652,0.7569,4118.5,4118.4,1.2114]
[1761642952863,1.19399,4118.5,4118.4,1.2114]
[1761642953262,1.19399,4118.5,4118.4,0.7743]
[1761642953564,1.19402,4118.2,4118.1,0.5611]
[1761642954062,1.19402,4118.2,4118.1,0.99823]
[1761642954857,0.43713,4118.1,4118.0,0.43713]
[1761642955157,0.85663,4118.1,4117.8,0.335]
[1761642955362,1.19403,4118.1,4118.0,0.77214]
[1761642956651,1.19403,4118.1,4117.6,1.09295]
[1761642956652,0.3374,4117.9,4117.7,0.77217]
[1761642956862,1.19406,4117.8,4117.7,0.99827]
[1761642957065,0.7569,4117.8,4117.7,0.99827]
[1761642957856,0.7569,4117.8,4117.7,1.21147]
[1761642960065,1.19406,4117.8,4117.7,0.7743]
[1761642960266,1.19406,4117.8,4117.7,1.21147]
[1761642960474,0.7569,4117.8,4117.7,1.21147]
[1761642962662,1.19406,4117.8,4117.7,0.5611]
[1761642963160,0.7569,4117.8,4117.7,1.21147]
[1761642963365,1.19406,4117.8,4117.7,1.21147]
[1761642966470,0.3154,4118.3,4117.7,0.4393]
[1761642966770,1.20091,4118.3,4118.2,1.19042]
[1761642967770,0.7638,4118.3,4118.2,1.19042]
[1761642968272,1.20091,4118.3,4118.2,1.19042]
[1761642968661,0.7638,4118.3,4118.2,1.19042]
[1761642969868,1.20091,4118.3,4118.2,1.19042]
[1761642970366,1.7798119,4118.3,4118.2,1.19042]
[1761642970863,0.217,4118.6,4118.3,1.42898]
[1761642971066,0.65406,4118.8,4118.7,1.22316]
[1761642971257,1.78347935,4118.8,4118.7,1.22316]
[1761642971455,1.34641935,4118.8,4118.7,1.22316]
[1761642971659,1.23297935,4118.8,4118.7,1.22316]
[1761642972068,1.55837935,4118.8,4118.7,1.22316]
[1761642972668,1.78347935,4118.8,4118.7,0.7861]
[1761642973572,1.78347935,4118.8,4118.7,1.22317]
[1761642974068,1.78347935,4118.8,4118.7,0.7861]
[1761642975571,0.8972,4118.5,4118.4,0.3362]
[1761642975874,1.20463,4118.2,4118.1,1.00003]
[1761642976065,1.20463,4118.2,4118.1,1.22323]
[1761642978168,0.43713,4118.2,4118.1,1.22323]
[1761642978373,1.20461,4118.3,4118.2,0.7861]
[1761642979074,1.20467,4117.7,4117.6,0.7861]
[1761642979675,1.20467,4117.7,4117.6,0.5629]
[1761642981074,1.79324167,4117.7,4117.6,0.5629]
[1761642981374,1.20467,4117.7,4117.6,0.5629]
[1761642982774,1.79320075,4117.7,4117.6,0.5629]
[1761642983271,1.20467,4117.7,4117.6,0.5629]
[1761642983577,1.79318167,4117.7,4117.6,0.5629]
[1761642984273,1.20467,4117.7,4117.6,0.5629]
[1761642984470,0.21090245,4118.4,4118.3,1.22321]
[1761642984668,0.53630245,4118.4,4118.3,0.7861]
[1761642984972,1.19850245,4118.4,4118.3,0.7861]
[1761642985373,0.76140245,4118.4,4118.3,1.22321]
[1761642985573,1.19850245,4118.4,4118.3,1.22321]
[1761642986080,1.19850245,4118.4,4118.3,0.7861]
[1761642986976,0.43713,4118.1,4118.0,0.3523]
[1761642987175,0.98767,4117.7,4117.6,0.2232]
[1761642987378,1.20467,4117.7,4117.6,0.4499]
[1761642987679,1.20467,4117.7,4117.6,0.7861]
[1761642988780,1.20467,4117.7,4117.6,1.22328]
[1761642990380,0.4421,4117.7,4117.6,1.22328]
[1761642990883,0.217,4117.7,4117.6,1.22328]
[1761642992289,1.20467,4117.7,4117.6,1.22328]
[1761642992782,0.7675,4117.7,4117.6,1.22328]
[1761642992978,0.4421,4117.7,4117.6,1.22328]
[1761642993383,0.43716,4117.8,4117.7,1.22327]
[1761642993582,0.65416,4117.8,4117.7,1.22327]
[1761642996289,0.217,4117.8,4117.7,1.22327]
[1761642998682,0.65416,4117.8,4117.7,1.22327]
[1761642998882,0.65416,4117.8,4117.7,0.7861]
[1761642999383,0.65416,4117.8,4117.7,1.22327]
[1761643000487,0.217,4117.8,4117.7,1.22327]
[1761643000784,0.43715,4117.9,4117.8,1.21416]
[1761643001889,0.65025,4117.9,4117.8,1.21416]
[1761643004588,0.65025,4117.9,4117.8,0.777]
[1761643004786,1.23844575,4117.9,4117.8,0.777]
[1761643004982,1.22278,4117.6,4117.5,0.3403]
[1761643005185,1.22278,4117.6,4117.5,1.00189]
[1761643005379,1.33829,4117.5,4117.4,0.00177164]
[1761643005587,1.92646188,4117.5,4117.4,0.00177164]
[1761643005782,1.92646188,4117.5,4117.4,0.34207164]
[1761643006086,1.92646188,4117.5,4117.4,0.00177164]
[1761643006482,42.72646188,4117.5,4117.4,0.00177164]
[1761643006875,42.72646188,4117.5,4117.4,0.34207164]
[1761643007074,42.72646188,4117.5,4117.4,0.00177164]
[1761643007680,42.72646188,4117.5,4117.4,0.34207164]
[1761643008594,42.72646188,4117.5,4117.4,0.00177164]
[1761643013701,1.22287,4116.8,4116.7,0.5647]
[1761643014298,1.22287,4116.8,4116.7,0.3403]
[1761643014695,0.78790792,4116.8,4116.7,0.56720286]
[1761643014894,0.78790792,4116.8,4116.7,1.00448286]
[1761643015095,0.78790792,4116.8,4116.7,1.21678286]
[1761643015501,0.44290792,4116.8,4116.7,1.21678286]
[1761643017300,0.21540792,4116.8,4116.7,1.21678286]
[1761643017795,0.00230792,4116.8,4116.7,1.21678286]
[1761643020008,0.21540792,4116.8,4116.7,1.21678286]
[1761643021307,0.00230792,4116.8,4116.7,1.21678286]
[1761643021802,0.345,4117.9,4117.6,0.4367]
[1761643021995,0.7856,4117.6,4117.5,0.3403]
[1761643022200,1.36433019,4117.6,4117.5,0.77749]
[1761643022400,1.36433019,4117.6,4117.5,1.00189]
[1761643022906,1.36641396,4117.6,4117.5,1.00189]
[1761643023097,1.36641396,4117.6,4117.5,1.21419]
[1761643024706,1.36641396,4117.6,4117.5,1.34129]
[1761643024904,0.00208377,4117.6,4117.5,1.34129]
[1761643025106,0.21108377,4117.6,4117.5,1.34129]
[1761643025406,0.54418377,4117.6,4117.5,1.34129]
[1761643025603,0.21108377,4117.6,4117.5,1.34129]
[1761643025810,0.00208377,4117.6,4117.5,1.34129]
[1761643026507,0.64609,4118.5,4118.4,1.2258]
[1761643026712,1.22437765,4118.5,4118.4,0.7887]
[1761643027010,1.77577765,4118.5,4118.4,0.7887]
[1761643027509,1.77866433,4118.5,4118.4,0.7887]
[1761643028210,1.77866433,4118.5,4118.4,0.5669]
[1761643030911,1.77866433,4118.5,4118.4,0.7957]
[1761643034015,1.20173,4118.1,4118.0,0.2146]
[1761643034308,1.20173,4118.1,4117.6,3.88545136]
[1761643034309,1.20177,4117.8,4117.7,0.65176]
[1761643034510,1.20176,4117.8,4117.7,0.5567]
[1761643034712,1.20176,4117.8,4117.7,0.7855]
[1761643035010,1.20176,4117.8,4117.7,1.22267]
[1761643036011,0.64766,4117.8,4117.7,1.22267]
[1761643036202,0.2105,4117.8,4117.7,1.22267]
[1761643036409,0.6476,4118.4,4118.3,0.7855]
[1761643036712,1.22612734,4118.4,4118.3,0.7855]
[1761643037512,1.22612734,4118.4,4118.3,1.22261]
[1761643037713,1.22612734,4118.4,4118.3,0.7855]
[1761643037911,1.22612734,4118.4,4118.3,1.22261]
[1761643038115,1.22612734,4118.4,4118.3,0.7855]
[1761643040915,1.57102734,4118.4,4118.3,0.7855]
[1761643041316,1.78022734,4118.4,4118.3,0.7855]
[1761643041721,0.99822734,4118.4,4118.3,1.22261]
[1761643042122,0.4371,4118.4,4118.3,1.22261]
[1761643042823,0.4371,4118.4,4118.3,0.7855]
[1761643043217,0.6476,4118.4,4118.3,0.7855]
[1761643043422,1.2017,4118.4,4118.3,0.7855]
[1761643044927,1.2017,4118.4,4118.3,1.22261]
[1761643045428,0.8568,4118.4,4118.3,1.22261]
[1761643045930,0.00288668,4118.5,4118.4,1.2226]
[1761643045931,0.43997668,4118.5,4118.4,1.2226]
[1761643046133,0.65047668,4118.5,4118.4,1.2226]
[1761643047033,0.00288668,4118.5,4118.4,1.2226]
[1761643048131,0.43997668,4118.5,4118.4,1.2226]
[1761643048930,1.01523613,4118.5,4118.4,1.2226]
[1761643049922,1.22573613,4118.5,4118.4,1.2226]
[1761643051628,0.00288668,4118.5,4118.4,1.2226]
[1761643078748,0.65786,4119.7,4119.6,0.5592]
[1761643078945,1.23158951,4119.7,4119.6,0.7759]
[1761643079145,1.54708951,4119.7,4119.6,0.7759]
[1761643079346,1.76058951,4119.7,4119.6,0.7759]
[1761643079753,1.76332376,4119.7,4119.6,0.77897901]
[1761643079955,1.76332376,4119.7,4119.6,1.21594901]
[1761643081259,0.57646376,4119.7,4119.6,1.21594901]
[1761643081652,0.00273425,4119.7,4119.6,1.21594901]
[1761643082462,0.2209,4119.7,4119.6,0.00307901]
[1761643082648,1.18686,4119.7,4119.6,0.00307901]
[1761643083451,1.18999805,4119.7,4119.6,0.55927901]
[1761643083650,1.18999805,4119.7,4119.6,0.77897901]
[1761643084254,1.18999805,4119.7,4119.6,0.00307901]
[1761643084854,1.18999805,4119.7,4119.6,0.76897901]
[1761643085054,0.00313805,4119.7,4119.6,1.20594901]
[1761643090562,0.66128,4120.5,4120.4,1.20909]
[1761643091263,1.21338,4120.5,4120.4,0.7722]
[1761643091665,1.21598194,4120.5,4120.4,0.7722]
[1761643093565,1.21342,4120.1,4120.0,0.2227]
[1761643094065,1.21342,4120.1,4120.0,0.5453]
[1761643094460,1.21342,4120.1,4120.0,1.20913]
[1761643094856,1.21342,4120.1,4120.0,1.34253]
[1761643095052,0.4557,4120.1,4120.0,1.34253]
[1761643095660,1.21339,4120.4,4120.3,1.2091]
[1761643095867,0.7765,4120.4,4120.3,1.2091]
[1761643096063,0.43948194,4120.5,4120.3,0.7722]
[1761643096265,0.00260194,4120.5,4120.4,1.20909]
[1761643096568,0.43948194,4120.5,4120.4,1.20909]
[1761643096769,0.66388194,4120.5,4120.4,1.20909]
[1761643097173,0.66388194,4120.5,4120.4,0.7722]
[1761643097765,0.98468194,4120.5,4120.4,0.7722]
[1761643097967,1.21598194,4120.5,4120.4,0.7722]
[1761643101566,1.21598194,4120.5,4120.4,0.5453]
[1761643103466,0.7765,4119.7,4119.6,0.32567901]
[1761643103671,0.7765,4119.7,4119.6,0.00307901]
[1761643103864,1.34803911,4119.7,4119.6,0.00307901]
[1761643106463,42.14803911,4119.7,4119.6,0.00307901]
[1761643114393,41.5765,4119.7,4119.6,0.00307901]
[1761643122189,0.5452,4119.7,4119.6,0.54737901]
[1761643122488,0.7685,4119.7,4119.6,0.54737901]
[1761643123191,0.7685,4119.7,4119.6,1.19494901]
[1761643123393,0.5452,4119.7,4119.6,1.19494901]
[1761643123690,0.3333,4119.9,4119.8,0.7549]
[1761643123894,0.5446,4120.2,4120.1,0.5416]
[1761643124095,0.7679,4120.2,4120.1,0.7549]
[1761643124287,0.7679,4119.9,4119.8,0.2133]
[1761643124799,0.7679,4119.9,4119.8,0.5443]
[1761643125994,0.7679,4119.9,4119.8,1.19185]
[1761643126597,0.7679,4119.9,4119.8,0.7549]
[1761643126796,0.4346,4119.9,4119.8,0.7549]
[1761643127098,0.7679,4119.9,4119.8,0.7549]
[1761643127290,0.4346,4119.9,4119.8,1.19185]
[1761643127485,40.8,4120.4,4119.8,0.7549]
[1761643127793,0.78255509,4120.3,4120.2,0.7549]
[1761643128097,1.11585509,4120.3,4120.2,0.7549]
[1761643128796,1.33915509,4120.3,4120.2,0.7549]
[1761643129291,1.33915509,4120.3,4120.2,0.331]
[1761643129699,1.33915509,4120.3,4120.2,0.5443]
[1761643129898,1.33969549,4120.3,4120.2,0.5443]
[1761643131797,1.33969549,4120.3,4120.2,0.7549]
[1761643131993,1.33969549,4120.3,4120.2,1.22505662]
[1761643134196,1.33969549,4120.3,4120.2,0.78814662]
[1761643136100,1.33969549,4120.3,4120.2,0.57754662]
[1761643136302,1.33969549,4120.3,4120.2,0.03324662]
[1761643137205,1.33969549,4120.3,4120.2,0.78814662]
[1761643143310,1.33969549,4120.3,4120.2,0.03324662]
[1761643149409,1.33969549,4120.3,4119.6,0.00307901]
[1761643149410,0.7733,4119.7,4119.6,0.00307901]
[1761643149609,1.34509549,4119.7,4119.6,0.00307901]
[1761643151316,1.24509549,4119.7,4119.6,0.00307901]
[1761643151618,1.24509549,4119.7,4119.6,0.34137901]
[1761643154016,1.24509549,4119.7,4119.6,0.00307901]
[1761643156123,0.6733,4119.7,4119.6,0.00307901]
[1761643156323,1.24593187,4119.7,4119.6,0.56987901]
[1761643158126,1.24593187,4119.7,4119.6,0.78427901]
[1761643158422,0.90093187,4119.7,4119.6,0.78427901]
[1761643159326,1.24593187,4119.7,4119.6,0.78427901]
[1761643159527,1.24593187,4119.7,4119.6,0.56987901]
[1761643160420,1.24593187,4119.7,4119.6,0.78427901]
[1761643161722,0.78993187,4119.7,4119.6,0.78427901]
[1761643161922,0.57263187,4119.7,4119.6,1.22124901]
[1761643162121,0.34760194,4120.5,4120.2,0.3383]
[1761643162324,0.4283,4120.3,4120.2,0.7812]
[1761643162532,0.78320794,4120.3,4120.2,0.7812]
[1761643163322,1.34550794,4120.3,4120.2,0.7812]
[1761643164729,0.78320794,4120.3,4120.2,0.7812]
[1761643166929,0.57220794,4120.3,4120.2,0.7812]
[1761643167131,0.57220794,4120.3,4120.2,0.4429]
[1761643167333,0.57222287,4120.4,4120.3,0.4429]
[1761643167734,0.78322287,4120.4,4120.3,0.4429]
[1761643168037,1.34552287,4120.4,4120.3,0.7812]
[1761643169534,1.00052287,4120.4,4120.3,0.7812]
[1761643170030,0.57222287,4120.4,4120.3,1.2181]
[1761643172832,0.21360194,4120.5,4120.4,1.21809]
[1761643173025,0.78568264,4120.5,4120.4,1.21809]
[1761643174136,0.57468264,4120.5,4120.4,1.21809]
[1761643175135,0.00260194,4120.5,4120.4,1.21809]
[1761643179534,0.2259,4121.7,4121.6,0.7537]
[1761643179842,0.79763492,4121.7,4121.6,1.19046]
[1761643180139,0.2259,4121.7,4121.6,1.19046]
[1761643180538,0.22892561,4121.7,4121.6,1.19046]
[1761643181637,0.79372561,4121.7,4121.6,0.7537]
[1761643183128,0.44702561,4121.7,4121.6,1.19046]
[1761643183325,0.22892561,4121.7,4121.6,1.19046]
[1761643184239,0.22892561,4121.7,4121.6,0.7537]
[1761643185642,0.22892561,4121.7,4121.1,0.3158]
[1761643185643,0.3467,4121.6,4121.1,0.3158]
[1761643185827,0.7907,4121.2,4121.1,0.7537]
[1761643186136,0.7907,4121.2,4121.1,1.19051]
[1761643186338,0.7907,4121.2,4121.1,0.7537]
[1761643189242,0.5726,4121.6,4121.2,0.3158]
[1761643189442,0.79575632,4121.5,4121.4,0.7537]
[1761643189743,1.01385632,4121.5,4121.4,0.7537]
[1761643189944,1.36055632,4121.5,4121.4,0.7537]
[1761643195746,0.444,4121.5,4121.4,0.7537]
[1761643196451,1.01432744,4121.5,4121.4,0.7537]
[1761643197246,1.36102744,4121.5,4121.4,0.7537]
[1761643202340,0.7907,4121.2,4121.1,0.3158]
[1761643202549,0.444,4120.4,4120.3,0.8748]
[1761643202749,0.7907,4120.4,4120.3,0.8748]
[1761643203051,0.444,4120.4,4120.3,1.1906]
[1761643203547,40.8,4120.9,4120.8,1.19054]
[1761643204640,0.7873,4121.2,4121.1,0.5586]
[1761643204847,1.35866824,4121.2,4121.1,0.5586]
[1761643205247,42.15866824,4121.2,4121.1,0.5586]
[1761643206549,42.15866824,4121.2,4121.1,0.7883]
[1761643207045,0.79726824,4121.2,4121.1,0.7883]
[1761643209350,0.79726824,4121.2,4121.1,1.22511]
[1761643209554,0.57136824,4121.2,4121.1,1.22511]
[1761643210345,0.22442561,4121.7,4121.6,0.7579]
[1761643210551,0.79656008,4121.7,4121.6,0.7579]
[1761643210851,1.02456008,4121.7,4121.6,0.7579]
[1761643211151,1.35906008,4121.7,4121.6,0.7579]
[1761643212756,1.35906008,4121.7,4121.6,1.19466]
[1761643213052,1.02456008,4121.7,4121.6,1.19466]
[1761643214651,1.02456008,4121.7,4121.6,0.7579]
[1761643214951,1.35906008,4121.7,4121.6,0.7579]
[1761643215648,1.35906008,4121.7,4121.6,0.546]
[1761643215853,1.35906008,4121.7,4121.6,0.3292]
[1761643216250,1.35906008,4121.7,4121.6,0.7579]
[1761643217558,1.35906008,4121.7,4121.6,0.546]
[1761643219060,0.2214,4121.4,4121.3,0.3292]
[1761643219256,0.7839,4121.2,4121.1,0.3292]
[1761643219561,1.35603447,4121.2,4121.1,0.3292]
[1761643220462,1.35603447,4121.2,4121.1,0.546]
[1761643222964,1.35603447,4121.2,4121.1,0.3292]
[1761643223569,0.79353447,4121.2,4121.1,0.7579]
[1761643223971,1.35603447,4121.2,4121.1,0.7579]
[1761643224471,1.35603447,4121.2,4121.1,0.546]
[1761643227871,0.4494,4120.7,4120.6,0.3292]
[1761643228170,0.3345,4120.6,4120.5,0.3292]
[1761643228370,1.35603447,4120.6,4120.5,0.3292]
[1761643228976,1.35603447,4120.6,4120.5,0.546]
[1761643229170,0.7839,4120.6,4120.5,0.546]
[1761643229471,0.3345,4120.1,4119.8,0.3292]
[1761643229673,0.3345,4119.8,4119.6,0.00307901]
[1761643229975,1.35412613,4119.7,4119.6,0.00307901]
[1761643230270,41.5839,4119.7,4119.6,0.00307901]
[1761643231169,41.77455839,4119.7,4119.6,0.00307901]
[1761643234573,41.5839,4119.7,4119.6,0.00307901]
[1761643236580,41.77495114,4119.7,4119.6,0.00307901]
[1761643237274,41.5839,4119.7,4119.6,0.00307901]
[1761643237674,41.5839,4119.7,4119.6,0.34057901]
[1761643239483,0.7839,4119.7,4119.6,0.34057901]
[1761643245283,0.7839,4119.7,4119.6,0.55877901]
[1761643249190,0.7839,4119.7,4119.6,0.34057901]
[1761643250391,0.7839,4119.7,4119.6,0.55877901]
[1761643252184,40.8,4119.9,4119.8,0.43695]
[1761643252384,0.5593,4120.6,4120.5,0.8996]
[1761643252581,0.2168,4120.8,4120.6,0.3375]
[1761643252786,0.773,4120.8,4120.7,0.3375]
[1761643252982,0.773,4120.8,4120.0,0.1344]
[1761643252983,0.3425,4120.7,4120.6,0.3375]
[1761643253183,0.2168,4120.2,4120.1,0.4277]
[1761643253383,0.2168,4120.4,4120.3,0.4277]
[1761643253793,0.2168,4120.4,4120.3,0.7652]
[1761643255696,0.2168,4120.6,4120.5,0.8996]
[1761643256190,0.773,4120.6,4120.5,0.8996]
[1761643256494,1.34547001,4120.6,4120.5,0.8996]
[1761643261598,1.34547001,4120.6,4120.5,0.5557]
[1761643264200,0.773,4120.2,4120.1,0.3375]
[1761643264401,1.34547001,4120.2,4120.1,0.3375]
[1761643265103,1.34547001,4120.2,4120.1,0.5557]
[1761643265597,1.34547001,4120.2,4120.1,0.7843]
[1761643265902,1.00297001,4120.2,4120.1,0.7843]
[1761643266201,1.34117001,4120.2,4120.1,0.7843]
[1761643266403,0.7687,4120.2,4120.1,0.7843]
[1761643267304,1.34136534,4120.2,4120.1,0.7843]
[1761643267602,1.00316534,4120.2,4120.1,0.7843]
[1761643267806,1.33766534,4120.2,4120.1,0.7843]
[1761643269799,1.33766534,4120.2,4120.1,0.5557]
[1761643270405,0.3345,4120.1,4119.7,0.3191]
[1761643270605,0.7918,4119.8,4119.7,0.5353]
[1761643271817,0.564,4120.1,4120.0,0.1263]
[1761643271999,0.2295,4120.1,4120.0,0.8826]